[Event "Senior Men Russian Championship 2022_1L"]
[Site "Olginka, Russia"]
[Date "????.??.??"]
[Round "5.4"]
[White "Kurdakov, Yuri"]
[Black "Kiriushin, Vladimir"]
[Result "1-0"]
[TimeControl "90min/40moves+30min/end+30sec increment per move starting from move 1"]
[WhiteTitle "FM"]
[WhiteFideId "4120493"]
[BlackFideId "4150848"]
[WhiteElo "2085"]
[BlackElo "1954"]

1. c4 {[%clk 01:30:50]} {[%emt 00:00:09]} e5 {[%clk 01:30:54]} {[%emt
00:00:07]} 2. Nc3 {[%clk 01:30:54]} {[%emt 00:00:27]} Nf6 {[%clk 01:31:18]}
{[%emt 00:00:05]} 3. g3 {[%clk 01:28:48]} {[%emt 00:02:37]} d5 {[%clk
01:29:28]} {[%emt 00:02:20]} 4. cxd5 {[%clk 01:28:54]} {[%emt 00:00:24]} Nxd5
{[%clk 01:29:55]} {[%emt 00:00:02]} 5. Bg2 {[%clk 01:28:14]} {[%emt 00:01:10]}
Be6 {[%clk 01:28:25]} {[%emt 00:02:00]} 6. Nf3 {[%clk 01:21:56]} {[%emt
00:06:48]} Nc6 {[%clk 01:27:53]} {[%emt 00:01:02]} 7. d3 {[%clk 01:22:14]}
{[%emt 00:00:12]} Be7 {[%clk 01:27:37]} {[%emt 00:00:46]} 8. O-O {[%clk
01:22:08]} {[%emt 00:00:36]} O-O {[%clk 01:27:48]} {[%emt 00:00:18]} 9. a3
{[%clk 01:21:44]} {[%emt 00:00:55]} Rb8 {[%clk 01:16:06]} {[%emt 00:12:12]} 10.
Bd2 {[%clk 01:21:26]} {[%emt 00:00:47]} f6 {[%clk 01:14:14]} {[%emt 00:02:22]}
11. Rc1 {[%clk 01:19:08]} {[%emt 00:02:49]} Nxc3 {[%clk 01:11:14]} {[%emt
00:03:29]} 12. Bxc3 {[%clk 01:18:58]} {[%emt 00:00:40]} Qd7 {[%clk 01:10:26]}
{[%emt 00:01:18]} 13. Re1 {[%clk 01:16:44]} {[%emt 00:02:43]} Rfd8 {[%clk
01:08:59]} {[%emt 00:01:57]} 14. Qc2 {[%clk 01:12:36]} {[%emt 00:04:39]} Bd5
{[%clk 01:08:29]} {[%emt 00:00:59]} 15. b4 {[%clk 01:09:15]} {[%emt 00:03:51]}
a6 {[%clk 01:08:14]} {[%emt 00:00:46]} 16. Qb2 {[%clk 01:09:28]} {[%emt
00:00:17]} Na7 {[%clk 01:03:30]} {[%emt 00:05:13]} 17. e4 {[%clk 01:01:18]}
{[%emt 00:08:40]} Bf7 {[%clk 01:00:02]} {[%emt 00:03:58]} 18. d4 {[%clk
01:01:34]} {[%emt 00:00:15]} exd4 {[%clk 00:59:17]} {[%emt 00:01:15]} 19. Nxd4
{[%clk 01:01:46]} {[%emt 00:00:18]} Nb5 {[%clk 00:57:16]} {[%emt 00:02:31]} 20.
Nxb5 {[%emt 00:00:18]} Qxb5 {[%clk 00:56:38]} {[%emt 00:01:04]} 21. e5 {[%clk
01:02:02]} {[%emt 00:00:30]} Qb6 {[%clk 00:48:16]} {[%emt 00:08:52]} 22. exf6
{[%clk 01:01:39]} {[%emt 00:00:52]} Bxf6 {[%clk 00:47:55]} {[%emt 00:00:50]} 23.
Bxf6 {[%clk 01:02:05]} {[%emt 00:00:05]} gxf6 {[%clk 00:47:23]} {[%emt
00:01:00]} 24. Re7 {[%clk 01:01:34]} {[%emt 00:01:02]} c5 {[%clk 00:40:56]}
{[%emt 00:06:57]} 25. Qc2 {[%clk 00:44:30]} {[%emt 00:17:34]} c4 {[%clk
00:28:56]} {[%emt 00:12:30]} 26. Bf1 {[%clk 00:41:33]} {[%emt 00:03:27]} Rbc8
{[%clk 00:26:44]} {[%emt 00:02:42]} 27. Rxf7 {[%clk 00:41:11]} {[%emt
00:00:51]} Kxf7 {[%clk 00:27:03]} {[%emt 00:00:11]} 28. Qxh7+ {[%clk 00:41:38]}
{[%emt 00:00:04]} Kf8 {[%clk 00:27:01]} {[%emt 00:00:32]} 29. Bxc4 {[%clk
00:41:43]} {[%emt 00:00:25]} Rxc4 {[%clk 00:22:23]} {[%emt 00:05:07]} 30. Rxc4
{[%clk 00:42:05]} {[%emt 00:00:08]} Rd1+ {[%clk 00:22:06]} {[%emt 00:00:46]} 31.
Kg2 {[%clk 00:42:33]} {[%emt 00:00:02]} Qe6 {[%clk 00:22:10]} {[%emt 00:00:26]}
32. Qh8+ {[%clk 00:38:11]} {[%emt 00:04:52]} Ke7 {[%clk 00:21:47]} {[%emt
00:00:54]} 33. Rc7+ {[%clk 00:38:31]} {[%emt 00:00:10]} Rd7 {[%clk 00:21:18]}
{[%emt 00:00:59]} 34. Qg7+ {[%clk 00:38:53]} {[%emt 00:00:08]} Kd6 {[%clk
00:21:34]} {[%emt 00:00:14]} 35. Rxd7+ {[%clk 00:39:16]} {[%emt 00:00:08]} Kd5
{[%emt 00:00:10]} 1-0

[Event "Senior Men Russian Championship 2022_1L"]
[Site "Olginka, Russia"]
[Date "????.??.??"]
[Round "5.6"]
[White "Norkin, Yaks"]
[Black "Chudinovskikh, Alexander M"]
[Result "0-1"]
[TimeControl "90min/40moves+30min/end+30sec increment per move starting from move 1"]
[BlackTitle "IM"]
[WhiteFideId "24216984"]
[BlackFideId "4106083"]
[WhiteElo "1686"]
[BlackElo "2074"]

1. e4 {[%clk 01:30:53]} {[%emt 00:00:06]} g6 {[%clk 01:30:51]} {[%emt
00:00:10]} 2. d4 {[%clk 01:31:08]} {[%emt 00:00:15]} Bg7 {[%clk 01:31:15]}
{[%emt 00:00:06]} 3. Nf3 {[%clk 01:30:04]} {[%emt 00:01:34]} c6 {[%clk
01:31:34]} {[%emt 00:00:12]} 4. c4 {[%clk 01:30:09]} {[%emt 00:00:25]} d5
{[%clk 01:31:56]} {[%emt 00:00:08]} 5. cxd5 {[%clk 01:30:04]} {[%emt 00:00:35]}
cxd5 {[%clk 01:32:21]} {[%emt 00:00:06]} 6. e5 {[%clk 01:29:40]} {[%emt
00:00:53]} Nc6 {[%clk 01:32:16]} {[%emt 00:00:35]} 7. Be2 {[%clk 01:29:10]}
{[%emt 00:01:00]} Bg4 {[%clk 01:32:00]} {[%emt 00:00:46]} 8. O-O {[%clk
01:28:46]} {[%emt 00:00:53]} e6 {[%clk 01:32:11]} {[%emt 00:00:19]} 9. Nc3
{[%clk 01:27:52]} {[%emt 00:01:24]} Nge7 {[%clk 01:32:10]} {[%emt 00:00:32]} 10.
Qa4 {[%clk 01:08:26]} {[%emt 00:19:56]} O-O {[%clk 01:32:08]} {[%emt 00:00:32]}
11. Rd1 {[%clk 01:04:46]} {[%emt 00:04:10]} a6 {[%clk 01:32:27]} {[%emt
00:00:12]} 12. h3 {[%clk 01:04:17]} {[%emt 00:00:58]} Bxf3 {[%clk 01:32:43]}
{[%emt 00:00:14]} 13. Bxf3 {[%clk 01:04:42]} {[%emt 00:00:05]} Nf5 {[%clk
01:32:42]} {[%emt 00:00:32]} 14. Ne2 {[%clk 01:03:37]} {[%emt 00:01:35]} f6
{[%clk 01:31:20]} {[%emt 00:01:52]} 15. exf6 {[%clk 00:59:15]} {[%emt
00:04:52]} Qxf6 {[%clk 01:29:47]} {[%emt 00:02:02]} 16. Be3 {[%clk 00:57:56]}
{[%emt 00:01:49]} Nh4 {[%clk 01:29:59]} {[%emt 00:00:18]} 17. Bg4 {[%clk
00:55:17]} {[%emt 00:03:09]} h5 {[%clk 01:29:21]} 18. g3 {[%clk 00:55:17]} hxg4
{[%clk 01:29:21]} 19. gxh4 {[%clk 00:55:17]} gxh3 {[%clk 01:29:21]} 20. Bf4
{[%clk 00:55:17]} Qxh4 {[%clk 01:29:21]} 21. Bg3 {[%clk 00:55:17]} Qe4 {[%clk
01:29:21]} 22. Kf1 {[%emt 00:13:36]} h2 {[%emt 00:00:03]} 23. Bxh2 {[%emt
00:00:04]} Qg2+ {[%emt 00:00:06]} 24. Bg3 {[%emt 00:00:04]} 0-1

[Event "Senior Men Russian Championship 2022_1L"]
[Site "Olginka, Russia"]
[Date "????.??.??"]
[Round "5.7"]
[White "Rakov, Anatoly"]
[Black "Okunev, Nikolai"]
[Result "1-0"]
[TimeControl "90min/40moves+30min/end+30sec increment per move starting from move 1"]
[WhiteFideId "4178793"]
[BlackFideId "24131911"]
[WhiteElo "1877"]
[BlackElo "1935"]

1. d4 {[%clk 01:30:10]} {[%emt 00:00:49]} Nf6 {[%clk 01:30:11]} {[%emt
00:00:48]} 2. Bf4 {[%clk 01:30:30]} {[%emt 00:00:10]} e6 {[%clk 01:28:41]}
{[%emt 00:02:01]} 3. e3 {[%clk 01:30:35]} {[%emt 00:00:26]} c5 {[%clk
01:25:35]} {[%emt 00:03:36]} 4. c3 {[%clk 01:30:47]} {[%emt 00:00:18]} cxd4
{[%clk 01:25:01]} {[%emt 00:01:04]} 5. exd4 {[%clk 01:31:01]} {[%emt 00:00:16]}
Nc6 {[%clk 01:23:36]} {[%emt 00:01:54]} 6. Nd2 {[%clk 01:30:29]} {[%emt
00:01:03]} d5 {[%clk 01:22:16]} {[%emt 00:01:49]} 7. Bd3 {[%clk 01:27:29]}
{[%emt 00:03:31]} Bd6 {[%clk 01:21:04]} {[%emt 00:01:42]} 8. Bg3 {[%clk
01:26:54]} {[%emt 00:01:05]} Bxg3 {[%clk 01:20:24]} {[%emt 00:01:10]} 9. hxg3
{[%clk 01:27:22]} {[%emt 00:00:02]} e5 {[%clk 01:17:38]} {[%emt 00:03:16]} 10.
dxe5 {[%clk 01:18:10]} {[%emt 00:09:43]} Nxe5 {[%clk 01:16:10]} {[%emt
00:01:57]} 11. Qe2 {[%clk 01:18:22]} {[%emt 00:00:18]} O-O {[%clk 01:16:07]}
{[%emt 00:00:34]} 12. Bxh7+ {[%clk 00:57:38]} {[%emt 00:21:14]} Nxh7 {[%clk
01:15:31]} {[%emt 00:01:06]} 13. Qh5 {[%clk 00:58:00]} {[%emt 00:00:08]} f6
{[%clk 00:53:15]} {[%emt 00:22:44]} 14. Qxh7+ {[%clk 00:58:00]} {[%emt
00:00:32]} Kf7 {[%clk 00:53:36]} {[%emt 00:00:09]} 15. O-O-O {[%clk 00:53:57]}
{[%emt 00:04:34]} Ng6 {[%clk 00:52:35]} {[%emt 00:01:30]} 16. Qh2 {[%clk
00:44:53]} {[%emt 00:09:34]} d4 {[%clk 00:48:26]} {[%emt 00:04:39]} 17. Nb3
{[%clk 00:42:02]} {[%emt 00:03:21]} Rh8 {[%clk 00:47:53]} {[%emt 00:01:02]} 18.
Nh3 {[%clk 00:40:12]} {[%emt 00:02:20]} d3 {[%clk 00:48:21]} {[%emt 00:00:03]}
19. Qg1 {[%clk 00:38:21]} {[%emt 00:02:20]} Be6 {[%clk 00:46:38]} {[%emt
00:02:13]} 20. Nc5 {[%clk 00:35:08]} {[%emt 00:03:44]} Bc4 {[%clk 00:45:40]}
{[%emt 00:01:28]} 21. Nf4 {[%clk 00:29:46]} {[%emt 00:05:52]} Rxh1 {[%clk
00:45:28]} {[%emt 00:00:41]} 22. Qxh1 {[%clk 00:30:15]} {[%emt 00:00:02]} Nxf4
{[%clk 00:44:14]} {[%emt 00:01:44]} 23. gxf4 {[%clk 00:30:42]} {[%emt
00:00:03]} Qd6 {[%clk 00:44:09]} {[%emt 00:00:35]} 24. Qh5+ {[%clk 00:29:04]}
{[%emt 00:02:09]} Kg8 {[%clk 00:44:08]} {[%emt 00:00:31]} 25. Qf5 {[%clk
00:24:17]} {[%emt 00:05:17]} Rd8 {[%clk 00:42:12]} {[%emt 00:02:27]} 26. Rd2
{[%clk 00:22:49]} {[%emt 00:01:58]} Qe7 {[%clk 00:35:32]} {[%emt 00:07:07]} 27.
Ne4 {[%clk 00:16:54]} {[%emt 00:06:27]} Bxa2 {[%clk 00:34:35]} {[%emt
00:01:27]} 28. f3 {[%clk 00:16:16]} {[%emt 00:01:09]} Rd5 {[%clk 00:28:33]}
{[%emt 00:06:29]} 29. Qc8+ {[%clk 00:13:32]} {[%emt 00:03:16]} Kf7 {[%clk
00:28:26]} {[%emt 00:00:37]} 30. g4 {[%clk 00:13:07]} {[%emt 00:00:55]} Bb3
{[%clk 00:27:32]} {[%emt 00:01:21]} 31. Rh2 {[%clk 00:09:19]} {[%emt 00:04:20]}
Rd8 {[%clk 00:22:16]} {[%emt 00:05:47]} 32. Qf5 {[%clk 00:08:48]} {[%emt
00:01:01]} Kf8 {[%clk 00:19:38]} {[%emt 00:03:04]} 33. Rh8+ {[%clk 00:07:06]}
{[%emt 00:02:16]} Bg8 {[%clk 00:19:57]} {[%emt 00:00:11]} 34. Kd2 {[%clk
00:06:03]} {[%emt 00:01:34]} b6 {[%clk 00:19:12]} {[%emt 00:01:14]} 35. g5
{[%clk 00:04:46]} {[%emt 00:01:47]} Qf7 {[%clk 00:16:59]} {[%emt 00:02:43]} 36.
gxf6 {[%clk 00:03:55]} {[%emt 00:01:22]} g6 {[%clk 00:17:07]} {[%emt 00:00:21]}
37. Qe5 {[%clk 00:03:46]} {[%emt 00:00:40]} Re8 {[%clk 00:15:41]} {[%emt
00:01:57]} 38. Qd6+ {[%clk 00:04:03]} {[%emt 00:00:12]} 1-0

[Event "Senior Men Russian Championship 2022_1L"]
[Site "Olginka, Russia"]
[Date "????.??.??"]
[Round "5.8"]
[White "Savinkov, Viktor"]
[Black "Kremenietsky, Anatoly M."]
[Result "0-1"]
[TimeControl "90min/40moves+30min/end+30sec increment per move starting from move 1"]
[BlackTitle "IM"]
[WhiteFideId "4138015"]
[BlackFideId "4103467"]
[WhiteElo "2068"]
[BlackElo "2241"]

1. c4 {[%clk 01:30:57]} {[%emt 00:00:02]} Nf6 {[%clk 01:30:03]} {[%emt
00:00:58]} 2. g3 {[%clk 01:30:52]} {[%emt 00:00:35]} g6 {[%clk 01:30:14]}
{[%emt 00:00:18]} 3. Bg2 {[%clk 01:30:46]} {[%emt 00:00:36]} Bg7 {[%clk
01:30:25]} {[%emt 00:00:18]} 4. Nc3 {[%clk 01:30:46]} {[%emt 00:00:30]} O-O
{[%clk 01:30:14]} {[%emt 00:00:41]} 5. Rb1 {[%clk 01:30:19]} {[%emt 00:00:58]}
c5 {[%clk 01:05:14]} {[%emt 00:25:30]} 6. a3 {[%clk 01:25:55]} {[%emt
00:04:55]} Nc6 {[%clk 00:54:55]} {[%emt 00:10:49]} 7. b4 {[%clk 01:24:03]}
{[%emt 00:02:22]} d6 {[%clk 00:52:46]} {[%emt 00:02:39]} 8. bxc5 {[%clk
01:21:05]} {[%emt 00:03:28]} dxc5 {[%clk 00:53:14]} {[%emt 00:00:02]} 9. Bxc6
{[%clk 01:21:26]} {[%emt 00:00:09]} bxc6 {[%clk 00:53:35]} {[%emt 00:00:08]} 10.
Qa4 {[%clk 01:21:36]} {[%emt 00:00:21]} Qc7 {[%clk 00:52:32]} {[%emt 00:01:33]}
11. d3 {[%clk 01:21:01]} {[%emt 00:01:05]} e5 {[%clk 00:50:57]} {[%emt
00:02:05]} 12. Be3 {[%clk 01:20:24]} {[%emt 00:01:07]} Re8 {[%clk 00:47:26]}
{[%emt 00:04:01]} 13. Bxc5 {[%clk 01:10:40]} {[%emt 00:10:14]} e4 {[%clk
00:46:52]} {[%emt 00:01:03]} 14. Nxe4 {[%clk 01:05:40]} {[%emt 00:05:30]} Rxe4
{[%clk 00:40:05]} {[%emt 00:07:18]} 15. dxe4 {[%clk 01:05:14]} {[%emt
00:00:57]} Nxe4 {[%clk 00:40:32]} {[%emt 00:00:02]} 16. Bb4 {[%clk 00:59:56]}
{[%emt 00:05:47]} Bc3+ {[%clk 00:37:58]} {[%emt 00:03:05]} 17. Bxc3 {[%clk
00:54:51]} {[%emt 00:05:36]} Nxc3 {[%clk 00:38:15]} {[%emt 00:00:12]} 18. Qb4
{[%clk 00:52:28]} {[%emt 00:02:54]} Nxb1 {[%clk 00:38:31]} {[%emt 00:00:14]} 19.
Qxb1 {[%clk 00:52:51]} {[%emt 00:00:07]} Rb8 {[%clk 00:28:52]} {[%emt
00:10:10]} 20. Qa2 {[%clk 00:49:51]} {[%emt 00:03:30]} Qa5+ {[%clk 00:21:07]}
{[%emt 00:08:15]} 21. Kf1 {[%clk 00:48:57]} {[%emt 00:01:24]} Qc3 {[%clk
00:20:24]} {[%emt 00:01:12]} 22. Kg2 {[%clk 00:45:39]} {[%emt 00:03:50]} Qc1
{[%clk 00:17:04]} {[%emt 00:03:50]} 23. a4 {[%clk 00:40:59]} {[%emt 00:05:10]}
Rb1 {[%clk 00:16:14]} {[%emt 00:01:20]} 24. h3 {[%clk 00:37:07]} {[%emt
00:04:23]} Be6 {[%clk 00:15:17]} {[%emt 00:01:27]} 25. a5 {[%clk 00:37:25]}
{[%emt 00:00:12]} Bxc4 {[%clk 00:15:12]} {[%emt 00:00:35]} 26. Qa4 {[%clk
00:37:28]} {[%emt 00:00:28]} Qf1+ {[%clk 00:11:40]} {[%emt 00:04:01]} 27. Kf3
{[%clk 00:37:07]} {[%emt 00:00:52]} Bxe2+ {[%clk 00:11:25]} {[%emt 00:00:43]}
28. Nxe2 {[%clk 00:32:22]} {[%emt 00:05:18]} Qxh1+ {[%clk 00:11:41]} {[%emt
00:00:13]} 29. Ke3 {[%clk 00:28:42]} {[%emt 00:04:11]} Qd5 {[%clk 00:11:54]}
{[%emt 00:00:16]} 30. Nf4 {[%clk 00:27:38]} {[%emt 00:01:34]} Re1+ {[%emt
00:00:42]} 31. Kd4 {[%emt 00:00:16]} 0-1

[Event "Senior Men Russian Championship 2022_1L"]
[Site "Olginka, Russia"]
[Date "2022.09.29"]
[Round "6.1"]
[White "Piankov, Evgenij"]
[Black "Rodin, Mihail"]
[Result "0-1"]
[TimeControl "90min/40moves+30min/end+30sec increment per move starting from move 1"]
[WhiteTitle "IM"]
[WhiteFideId "14100525"]
[BlackFideId "4113160"]
[WhiteElo "2165"]
[BlackElo "2320"]

1. d4 {[%clk 01:30:55]} {[%emt 00:00:03]} d5 {[%clk 01:30:58]} {[%emt
00:00:04]} 2. c4 {[%clk 01:31:11]} {[%emt 00:00:14]} e6 {[%clk 01:31:21]}
{[%emt 00:00:07]} 3. Nc3 {[%clk 01:31:22]} {[%emt 00:00:19]} c6 {[%clk
01:31:47]} {[%emt 00:00:04]} 4. Nf3 {[%clk 01:31:08]} {[%emt 00:00:43]} Nf6
{[%clk 01:32:13]} {[%emt 00:00:05]} 5. Bg5 {[%clk 01:31:11]} {[%emt 00:00:25]}
dxc4 {[%clk 01:32:38]} {[%emt 00:00:07]} 6. a4 {[%clk 01:31:20]} {[%emt
00:00:20]} b5 {[%clk 01:32:59]} {[%emt 00:00:08]} 7. axb5 {[%clk 01:20:28]}
{[%emt 00:11:23]} cxb5 {[%clk 01:33:14]} {[%emt 00:00:16]} 8. Nxb5 {[%clk
01:20:28]} {[%emt 00:00:30]} Qb6 {[%clk 01:33:36]} {[%emt 00:00:07]} 9. Nc3
{[%clk 01:20:47]} {[%emt 00:00:10]} Qxb2 {[%clk 01:34:02]} {[%emt 00:00:05]} 10.
Qc1 {[%clk 01:21:01]} {[%emt 00:00:16]} Qxc1+ {[%clk 01:33:58]} {[%emt
00:00:34]} 11. Rxc1 {[%clk 01:20:48]} {[%emt 00:00:42]} Nbd7 {[%clk 01:28:31]}
{[%emt 00:05:58]} 12. Bd2 {[%clk 01:20:18]} {[%emt 00:01:00]} Nd5 {[%clk
01:23:26]} {[%emt 00:05:35]} 13. e3 {[%clk 01:19:03]} {[%emt 00:01:45]} Ba3
{[%clk 01:20:46]} {[%emt 00:03:10]} 14. Rb1 {[%clk 01:18:55]} {[%emt 00:00:37]}
Bb4 {[%clk 01:20:54]} {[%emt 00:00:23]} 15. Rc1 {[%clk 01:16:54]} {[%emt
00:02:31]} Rb8 {[%clk 01:09:53]} {[%emt 00:11:30]} 16. Na2 {[%clk 00:55:03]}
{[%emt 00:22:22]} Ba3 {[%clk 00:58:37]} {[%emt 00:11:45]} 17. Rxc4 {[%clk
00:55:01]} {[%emt 00:00:31]} Rb1+ {[%clk 00:58:44]} {[%emt 00:00:24]} 18. Nc1
{[%clk 00:55:05]} {[%emt 00:00:25]} N7b6 {[%clk 00:55:44]} {[%emt 00:03:31]} 19.
Rc2 {[%clk 00:51:28]} {[%emt 00:04:06]} O-O {[%clk 00:54:55]} {[%emt 00:01:19]}
20. Bd3 {[%clk 00:45:47]} {[%emt 00:06:11]} Nb4 {[%clk 00:51:36]} {[%emt
00:03:49]} 21. Bxb4 {[%clk 00:45:48]} {[%emt 00:00:30]} Bxb4+ {[%clk 00:52:04]}
{[%emt 00:00:02]} 22. Ke2 {[%clk 00:45:46]} {[%emt 00:00:31]} Ra1 {[%clk
00:49:24]} {[%emt 00:03:10]} 23. Ra2 {[%clk 00:45:57]} {[%emt 00:00:20]} Rxa2+
{[%clk 00:49:47]} {[%emt 00:00:07]} 24. Nxa2 {[%clk 00:46:18]} {[%emt
00:00:09]} Bd6 {[%clk 00:45:09]} {[%emt 00:05:08]} 25. Nc3 {[%clk 00:46:15]}
{[%emt 00:00:33]} Bd7 {[%clk 00:39:44]} {[%emt 00:05:56]} 26. Ra1 {[%clk
00:44:15]} {[%emt 00:02:29]} Bb4 {[%clk 00:38:24]} {[%emt 00:01:51]} 27. Ne4
{[%clk 00:41:44]} {[%emt 00:03:00]} a5 {[%clk 00:34:49]} {[%emt 00:04:06]} 28.
Ne5 {[%clk 00:40:07]} {[%emt 00:02:06]} Rc8 {[%clk 00:34:02]} {[%emt 00:01:17]}
29. Nxd7 {[%clk 00:36:39]} {[%emt 00:03:58]} Nxd7 {[%clk 00:34:20]} {[%emt
00:00:13]} 30. Ra2 {[%clk 00:36:34]} {[%emt 00:00:34]} Nb6 {[%clk 00:34:23]}
{[%emt 00:00:27]} 31. Rc2 {[%clk 00:31:16]} {[%emt 00:05:48]} Ra8 {[%clk
00:26:48]} {[%emt 00:08:06]} 32. Nc3 {[%clk 00:31:12]} {[%emt 00:00:34]} a4
{[%clk 00:23:59]} {[%emt 00:03:20]} 33. Na2 {[%clk 00:29:57]} {[%emt 00:01:44]}
Bf8 {[%clk 00:23:17]} {[%emt 00:01:12]} 34. e4 {[%clk 00:29:32]} {[%emt
00:00:56]} a3 {[%clk 00:23:08]} {[%emt 00:00:40]} 35. Bb5 {[%clk 00:27:36]}
{[%emt 00:02:26]} g6 {[%clk 00:22:07]} {[%emt 00:01:30]} 36. Rc6 {[%clk
00:23:32]} {[%emt 00:04:34]} Rb8 {[%clk 00:21:24]} {[%emt 00:01:14]} 37. Kd3
{[%clk 00:22:31]} {[%emt 00:01:30]} Nd5 {[%clk 00:17:01]} {[%emt 00:04:54]} 38.
exd5 {[%clk 00:21:54]} {[%emt 00:01:07]} Rxb5 {[%clk 00:17:29]} {[%emt
00:00:02]} 39. dxe6 {[%clk 00:22:06]} {[%emt 00:00:18]} fxe6 {[%clk 00:17:57]}
{[%emt 00:00:02]} 40. Rxe6 {[%clk 00:50:19]} {[%emt 00:02:17]} Rb3+ {[%clk
00:48:19]} {[%emt 00:00:09]} 41. Nc3 {[%clk 00:50:29]} {[%emt 00:00:19]} a2
{[%clk 00:48:14]} {[%emt 00:00:36]} 42. Re1 {[%clk 00:50:14]} {[%emt 00:00:44]}
Bb4 {[%clk 00:48:32]} {[%emt 00:00:13]} 43. Kc4 {[%clk 00:50:05]} {[%emt
00:00:39]} Bxc3 {[%clk 00:48:42]} {[%emt 00:00:19]} 44. Kxb3 {[%clk 00:50:32]}
{[%emt 00:00:03]} Bxe1 {[%clk 00:48:55]} {[%emt 00:00:16]} 0-1

[Event "Senior Men Russian Championship 2022_1L"]
[Site "Olginka, Russia"]
[Date "2022.09.29"]
[Round "6.2"]
[White "Kovalev, Evgeny"]
[Black "Kurdakov, Yuri"]
[Result "1/2-1/2"]
[TimeControl "90min/40moves+30min/end+30sec increment per move starting from move 1"]
[BlackTitle "FM"]
[BlackFideId "4120493"]
[WhiteElo "2048"]
[BlackElo "2085"]

1. d4 {[%clk 01:30:56]} {[%emt 00:00:04]} e6 {[%clk 01:30:49]} {[%emt
00:00:11]} 2. g3 {[%clk 01:31:16]} {[%emt 00:00:10]} d5 {[%clk 01:30:51]}
{[%emt 00:00:28]} 3. Nf3 {[%clk 01:31:30]} {[%emt 00:00:15]} Nf6 {[%clk
01:30:29]} {[%emt 00:00:52]} 4. Bg2 {[%clk 01:31:50]} {[%emt 00:00:11]} Be7
{[%clk 01:30:36]} {[%emt 00:00:23]} 5. c4 {[%clk 01:31:57]} {[%emt 00:00:22]}
O-O {[%clk 01:30:38]} {[%emt 00:00:28]} 6. O-O {[%clk 01:32:20]} {[%emt
00:00:08]} dxc4 {[%clk 01:30:56]} {[%emt 00:00:12]} 7. Qc2 {[%clk 01:32:23]}
{[%emt 00:00:27]} a6 {[%clk 01:31:17]} {[%emt 00:00:10]} 8. a4 {[%clk
01:32:39]} {[%emt 00:00:14]} b6 {[%clk 01:20:46]} {[%emt 00:11:01]} 9. Qxc4
{[%clk 01:20:04]} {[%emt 00:13:04]} Bb7 {[%clk 01:20:35]} {[%emt 00:00:41]} 10.
Nc3 {[%clk 01:19:24]} {[%emt 00:01:10]} b5 {[%clk 01:18:38]} {[%emt 00:02:27]}
11. Qb3 {[%clk 01:18:41]} {[%emt 00:01:13]} b4 {[%clk 01:18:04]} {[%emt
00:01:04]} 12. a5 {[%clk 01:18:29]} {[%emt 00:00:42]} Nbd7 {[%clk 00:57:45]}
{[%emt 00:20:48]} 13. Na4 {[%clk 01:13:00]} {[%emt 00:06:00]} Bd5 {[%clk
00:57:35]} {[%emt 00:00:39]} 14. Qc2 {[%clk 01:08:11]} {[%emt 00:05:19]} Be4
{[%clk 00:57:58]} {[%emt 00:00:07]} 15. Qc4 {[%clk 01:07:08]} {[%emt 00:01:33]}
Bd5 {[%clk 00:57:59]} {[%emt 00:00:29]} 16. Qc2 {[%clk 01:05:23]} {[%emt
00:02:14]} Be4 {[%emt 00:00:36]} 1/2-1/2